fUST/lending_fUST_20251126
["ID","MTS","AMOUNT","RATE_DAILY","PERIOD"]
[394932504,1764158950021,389.14,2e-05,2]
[394932505,1764158950364,389.14,2e-05,2]
[394932506,1764158950658,389.14,2.1e-05,2]
[394932507,1764158950977,389.14,2.1e-05,2]
[394932508,1764158951451,389.14,2.1e-05,2]
[394932509,1764158951621,389.14,2.2e-05,2]
[394932510,1764158952700,389.14,2.2e-05,2]
[394932511,1764158952932,389.14,2.3e-05,2]
[394932512,1764158953254,389.14,2.3e-05,2]
[394932513,1764158953554,389.14,2.3e-05,2]
[394932514,1764158953949,389.14,2.4e-05,2]
[394932515,1764158954254,389.14,2.4e-05,2]
[394932516,1764158954706,389.14,2.5e-05,2]
[394932517,1764158955028,389.14,2.5e-05,2]
[394932518,1764158955553,389.14,2.6e-05,2]
[394932519,1764158955610,389.14,2.6e-05,2]
[394932520,1764158955984,389.14,2.6e-05,2]
[394932521,1764158956277,389.14,2.7e-05,2]
[394932522,1764158956640,389.14,2.7e-05,2]
[394932523,1764158956921,389.14,2.8e-05,2]
[394932524,1764158957320,389.14,2.8e-05,2]
[394932525,1764158957607,389.14,2.8e-05,2]
[394932526,1764158957902,389.14,2.9e-05,2]
[394932527,1764158958209,389.14,2.9e-05,2]
[394932528,1764158958549,389.14,3e-05,2]
[394932529,1764158958929,389.14,3e-05,2]
[394932530,1764158959278,19457.23,1e-05,2]
[394932537,1764158983750,-1241.24044635,0.00011158,2]
[394932538,1764158983775,-150.0,0.00011258,2]
[394932539,1764158983800,-150.0,0.00011372,2]
[394932540,1764158983825,-150.0,0.00011487,2]
[394932541,1764158983848,-150.0,0.00011603,2]
[394932542,1764158983872,-246.0,0.00011749,2]
[394932543,1764158983894,-152.53905237,0.00011868,2]
[394932544,1764158983918,-152.53905237,0.00011886,2]
[394932545,1764158983940,-152.53905237,0.00011903,2]
[394932546,1764158983961,-152.53905237,0.00011921,2]
[394932547,1764158983984,-152.53905237,0.00011938,2]
[394932548,1764158984007,-152.53905237,0.00011956,2]
[394932549,1764158984189,-152.53905237,0.00011973,2]
[394932550,1764158984213,-581.03574907,0.00012019,2]
[394932551,1764158984238,-500.0,0.00012019,2]
[394932552,1764158984260,-370.04494443,0.00012019,2]
[394932553,1764158984283,-500.0,0.00012019,2]
[394932554,1764158984306,-500.0,0.00012019,2]
[394932555,1764158984329,-454.17688397,0.00012019,2]
[394932556,1764158984353,-500.0,0.00012019,2]
[394932557,1764158984376,-500.0,0.00012019,2]
[394932558,1764158984399,-500.0,0.00012019,2]
[394932559,1764158984421,-294.15129845,0.00012019,2]
[394932560,1764158984448,-500.0,0.00012019,2]
[394932561,1764158984470,-500.0,0.00012019,2]
[394932562,1764158984495,-500.0,0.00012019,2]
[394932563,1764158984521,-500.0,0.00012019,2]
[394932564,1764158984545,-527.50667074,0.00012019,2]
[394932565,1764158984569,-500.0,0.00012019,2]
[394932566,1764158984596,-500.0,0.0001202,2]
[394932567,1764158984624,-500.0,0.0001202,2]
[394932568,1764158984650,-500.0,0.0001202,2]
[394932569,1764158984677,-500.0,0.0001202,2]
[394932570,1764158984703,-500.0,0.0001202,2]
[394932571,1764158984730,-500.0,0.0001202,2]
[394932572,1764158984757,-500.0,0.0001202,2]
[394932573,1764158984783,-500.0,0.0001202,2]
[394932574,1764158984811,-500.0,0.0001202,2]
[394932575,1764158984838,-500.0,0.0001202,2]
[394932576,1764158984865,-500.0,0.0001202,2]
[394932577,1764158984891,-500.0,0.0001202,2]
[394932578,1764158984916,-500.0,0.0001202,2]
[394932579,1764158984942,-500.0,0.0001202,2]
[394932580,1764158984969,-500.0,0.0001202,2]
[394932581,1764158984996,-500.0,0.0001202,2]
[394932582,1764158985024,-500.0,0.0001202,2]
[394932583,1764158985052,-500.0,0.0001202,2]
[394932584,1764158985078,-500.0,0.0001202,2]
[394932585,1764158985105,-500.0,0.0001202,2]
[394932586,1764158985132,-500.0,0.0001202,2]
[394932587,1764158985159,-500.0,0.0001202,2]
[394932588,1764158985184,-500.0,0.0001202,2]
[394932589,1764158985209,-500.0,0.0001202,2]
[394932590,1764158985239,-500.0,0.0001202,2]
[394932591,1764158985269,-500.0,0.0001202,2]
[394932592,1764158985298,-500.0,0.0001202,2]
[394932593,1764158985326,-500.0,0.0001202,2]
[394932594,1764158985352,-604.50011797,0.0001202,2]
[394932595,1764158985376,-500.0,0.0001202,2]
[394932596,1764158985401,-500.0,0.0001202,2]
[394932597,1764158985425,-500.0,0.0001202,2]
[394932598,1764158985453,-500.0,0.0001202,2]
[394932599,1764158985479,-500.0,0.0001202,2]
[394932600,1764158985504,-500.0,0.0001202,2]
[394932601,1764158985532,-500.0,0.0001202,2]
[394932602,1764158985557,-500.0,0.0001202,2]
[394932603,1764158985582,-500.0,0.0001202,2]
[394932604,1764158985607,-500.0,0.0001202,2]
[394932605,1764158985633,-500.0,0.0001202,2]
[394932606,1764158985658,-340.50106174,0.0001202,2]
[394932607,1764158985683,-500.0,0.0001202,2]
[394932608,1764158985707,-500.0,0.0001202,2]
[394932609,1764158985733,-500.0,0.0001202,2]
[394932610,1764158985753,-50000.0,0.0001202,2]
[394932611,1764158985776,-500.0,0.00012021,2]
[394932612,1764158985798,-500.0,0.00012021,2]
[394932613,1764158985820,-321.01034137,0.00012021,2]
[394932614,1764158985842,-500.0,0.00012021,2]
[394932615,1764158985864,-500.0,0.00012021,2]
[394932616,1764158985886,-500.0,0.00012021,2]
[394932617,1764158985908,-500.0,0.00012021,2]
[394932618,1764158985930,-500.0,0.00012021,2]
[394932619,1764158985951,-600.0,0.00012021,2]
[394932620,1764158985976,-203.41436211,0.00012022,2]
[394932621,1764158986001,-112548.64475721,0.00012029,2]
[394932622,1764159002302,185.1,1e-05,2]
[394932623,1764159002585,185.1,1.6e-05,2]
[394932624,1764159002942,185.1,2.3e-05,2]
[394932727,1764159038250,-607.73514766,0.00011663,2]
[394932729,1764159038260,-607.73514766,0.00011781,2]
[394932731,1764159038269,-246.0,0.00011781,2]
[394932733,1764159038278,-607.73514766,0.000119,2]
[394932735,1764159038288,-2555.77758502,0.0001192,2]
[394932743,1764159038356,-472.56483285,0.0001192,2]
[394932745,1764159038368,-477.79490419,0.0001192,2]
[394932753,1764159038440,-19565.79107116,0.0001192,2]
[394932850,1764159044846,-2470.86493121,0.00011801,2]
[394932851,1764159044859,-7883.45929748,0.00011801,2]
[394932852,1764159044870,-2220.69527582,0.00011801,2]
[394932853,1764159044881,-5905.72211834,0.0001192,2]
[394932854,1764159044900,-404.63637287,0.0001192,2]
[394932855,1764159044912,-414.45031978,0.0001192,2]
[394932857,1764159045747,-2913.47731066,0.0001192,2]
[394932862,1764159046446,-3476.468,0.0001192,2]
[394932863,1764159046501,-10133.60762368,0.0001192,2]
[394932940,1764159634575,-192.18573116,0.00012352,7]
[394932956,1764160118976,169.7993969,5.103e-05,2]
[394933034,1764160232656,-507.2010556,9.716e-05,2]
[394933035,1764160232670,-958.7989444,9.716e-05,2]
[394933036,1764160232680,-1466.0,9.814e-05,2]
[394933037,1764160232689,-231.0,9.913e-05,2]
[394933038,1764160232699,-150.0,9.963e-05,2]
[394933039,1764160232707,-999.0,0.00010959,2]
[394933040,1764160232717,-300.0,0.00011666,2]
[394933041,1764160232726,-1070.0,0.00011666,2]
[394933042,1764160232735,-300.0,0.00011666,2]
[394933043,1764160232744,-500.0,0.00011666,2]
[394933044,1764160232754,-500.0,0.00011666,2]
[394933045,1764160232763,-500.0,0.00011666,2]
[394933046,1764160232772,-494.70723896,0.00011666,2]
[394933047,1764160232783,-500.0,0.00011666,2]
[394933048,1764160232791,-1200.0,0.00011667,2]
[394933049,1764160232800,-448.40893311,0.00011667,2]
[394933050,1764160232831,-500.0,0.00011666,2]
[394933051,1764160232842,-500.0,0.00011666,2]
[394933052,1764160232851,-47672.50251931,0.00011667,2]
[394933053,1764160232862,-476.52,0.00011667,2]
[394933054,1764160232873,-1051.3955753,0.00011667,2]
[394933068,1764160238361,-500.0,0.00011665,2]
[394933069,1764160238371,-500.0,0.00011665,2]
[394933070,1764160238381,-453.0,0.00011665,2]
[394933071,1764160238470,-47.0,0.00011665,2]
[394933072,1764160238480,-500.0,0.00011665,2]
[394933073,1764160238491,-500.0,0.00011665,2]
[394933074,1764160238501,-500.0,0.00011665,2]
[394933075,1764160238512,-500.0,0.00011665,2]
[394933076,1764160238523,-500.0,0.00011665,2]
[394933077,1764160238533,-500.0,0.00011665,2]
[394933078,1764160238543,-500.0,0.00011665,2]
[394933079,1764160238553,-537.88727389,0.00011665,2]
[394933080,1764160238563,-500.0,0.00011665,2]
[394933081,1764160238572,-500.0,0.00011665,2]
[394933082,1764160238582,-500.0,0.00011665,2]
[394933083,1764160238591,-500.0,0.00011665,2]
[394933084,1764160238601,-500.0,0.00011665,2]
[394933085,1764160238610,-500.0,0.00011665,2]
[394933086,1764160238623,-500.0,0.00011665,2]
[394933087,1764160238634,-500.0,0.00011665,2]
[394933088,1764160238654,-500.0,0.00011665,2]
[394933089,1764160238665,-627.73580685,0.00011665,2]
[394933090,1764160238677,-620.91974068,0.00011665,2]
[394933091,1764160238687,-500.0,0.00011665,2]
[394933092,1764160238697,-500.0,0.00011665,2]
[394933093,1764160238707,-500.0,0.00011665,2]
[394933094,1764160238718,-500.0,0.00011665,2]
[394933095,1764160238728,-500.0,0.00011665,2]
[394933096,1764160238738,-500.0,0.00011665,2]
[394933097,1764160238747,-500.0,0.00011665,2]
[394933098,1764160238758,-500.0,0.00011665,2]
[394933099,1764160238767,-500.0,0.00011665,2]
[394933100,1764160238777,-500.0,0.00011665,2]
[394933101,1764160238787,-500.0,0.00011665,2]
[394933102,1764160238797,-500.0,0.00011665,2]
[394933103,1764160238807,-500.0,0.00011665,2]
[394933104,1764160238817,-500.0,0.00011665,2]
[394933105,1764160238829,-500.0,0.00011665,2]
[394933106,1764160238843,-500.0,0.00011665,2]
[394933107,1764160238853,-500.0,0.00011665,2]
[394933108,1764160238863,-500.0,0.00011665,2]
[394933109,1764160238872,-500.0,0.00011665,2]
[394933110,1764160238882,-500.0,0.00011665,2]
[394933111,1764160238892,-500.0,0.00011665,2]
[394933112,1764160238902,-500.0,0.00011665,2]
[394933113,1764160238912,-500.0,0.00011665,2]
[394933114,1764160238922,-500.0,0.00011665,2]
[394933115,1764160238932,-500.0,0.00011665,2]
[394933116,1764160238941,-500.0,0.00011665,2]
[394933117,1764160238951,-500.0,0.00011665,2]
[394933118,1764160238961,-500.0,0.00011666,2]
[394933119,1764160238971,-500.0,0.00011666,2]
[394933120,1764160238981,-351.17297228,0.00011667,2]
[394933121,1764160238990,-607.73514766,0.00011667,2]
[394933122,1764160239000,-89378.29875725,0.00011668,2]
[394933123,1764160239012,-2550.15099309,0.00011668,2]
[394933148,1764160240780,-400.06810294,0.00011665,2]
[394933149,1764160240797,-99.93189706,0.00011665,2]
[394933150,1764160240806,-17196.12567686,0.00011668,2]
[394933185,1764160688625,500.49,0.0002,30]
[394933318,1764161432561,-1772.74237406,9.919e-05,2]
[394933332,1764161438523,-24.15659804,9.919e-05,2]
[394933333,1764161438532,-1564.8989721,0.00010019,2]
[394933334,1764161438542,-232.0,0.00010019,2]
[394933335,1764161438553,-228.1278828,0.00010051,2]
[394933337,1764161438563,-150.0,0.00010171,2]
[394933340,1764161438573,-1564.8989721,0.00010747,2]
[394933342,1764161438583,-500.0,0.00010972,2]
[394933344,1764161438593,-500.0,0.00010972,2]
[394933346,1764161438602,-500.0,0.00010972,2]
[394933348,1764161438611,-500.0,0.00010972,2]
[394933350,1764161438621,-500.0,0.00010972,2]
[394933351,1764161438630,-500.0,0.00010972,2]
[394933353,1764161438640,-500.0,0.00010972,2]
[394933355,1764161438650,-500.0,0.00010972,2]
[394933356,1764161438660,-500.0,0.00010972,2]
[394933358,1764161438670,-500.0,0.00010972,2]
[394933360,1764161438680,-500.0,0.00010972,2]
[394933361,1764161438690,-500.0,0.00010972,2]
[394933363,1764161438699,-391.52374979,0.00010972,2]
[394933364,1764161438708,-500.0,0.00010972,2]
[394933366,1764161438719,-500.0,0.00010972,2]
[394933367,1764161438728,-338.00184857,0.00010972,2]
[394933368,1764161438737,-500.0,0.00010972,2]
[394933369,1764161438747,-500.0,0.00010972,2]
[394933370,1764161438756,-500.0,0.00010972,2]
[394933371,1764161438766,-500.0,0.00010972,2]
[394933372,1764161438775,-500.0,0.00010972,2]
[394933373,1764161438785,-500.0,0.00010972,2]
[394933374,1764161438794,-253.40921704,0.00010972,2]
[394933375,1764161438803,-489.0308034,0.00010972,2]
[394933390,1764161440783,-10.9691966,0.00010972,2]
[394933391,1764161440793,-500.0,0.00010972,2]
[394933392,1764161440802,-113.7808034,0.00010972,2]
[394933585,1764162631988,-819.76325485,9.185e-05,2]
[394933588,1764162631998,-819.76325485,9.278e-05,2]
[394933590,1764162632007,-227.0,9.278e-05,2]
[394933592,1764162632016,-150.0,9.325e-05,2]
[394933593,1764162632026,-300.0,9.931e-05,2]
[394933595,1764162632035,-685.0,9.931e-05,2]
[394933597,1764162632044,-1200.0,9.932e-05,2]
[394933600,1764162632054,-5000.0,9.932e-05,2]
[394933601,1764162632063,-364.36149946,9.933e-05,2]
[394933604,1764162632072,-501.98483195,9.933e-05,2]
[394933605,1764162632081,-505.61938978,9.933e-05,2]
[394933608,1764162632090,-500.0,9.933e-05,2]
[394933609,1764162632099,-500.0,9.933e-05,2]
[394933612,1764162632109,-500.0,9.933e-05,2]
[394933614,1764162632118,-287.22437894,9.951e-05,2]
[394933616,1764162632129,-1645.0,9.954e-05,2]
[394933618,1764162632139,-500.0,9.954e-05,2]
[394933620,1764162632150,-1128.0,9.954e-05,2]
[394933622,1764162632159,-152.4719008,9.954e-05,2]
[394933624,1764162632169,-167.17359532,9.954e-05,2]
[394933626,1764162632178,-151.0,9.954e-05,2]
[394933628,1764162632187,-151.0,9.954e-05,2]
[394933629,1764162632196,-154.36050989,9.954e-05,2]
[394933632,1764162632205,-202.16492014,9.954e-05,2]
[394933634,1764162632214,-151.0,9.954e-05,2]
[394933636,1764162632223,-151.0,9.954e-05,2]
[394933638,1764162632232,-247.82873822,9.954e-05,2]
[394933640,1764162632242,-151.0,9.954e-05,2]
[394933642,1764162632251,-151.0,9.954e-05,2]
[394933644,1764162632260,-500.0,9.954e-05,2]
[394933646,1764162632269,-2965.2403644,9.956e-05,2]
[394933648,1764162632278,-500.0,9.972e-05,2]
[394933650,1764162632287,-5000.0,9.995e-05,2]
[394933652,1764162632297,-5000.0,9.999e-05,2]
[394933654,1764162632306,-1645.0,0.00010091,2]
[394933656,1764162632315,-500.0,0.00010091,2]
[394933658,1764162632324,-1128.0,0.00010091,2]
[394933659,1764162632333,-151.0,0.00010091,2]
[394933662,1764162632342,-154.93402761,0.00010091,2]
[394933664,1764162632353,-151.0,0.00010091,2]
[394933666,1764162632365,-151.0,0.00010091,2]
[394933667,1764162632375,-151.0,0.00010091,2]
[394933669,1764162632384,-500.0,0.00010091,2]
[394933672,1764162632393,-1645.0,0.00010228,2]
[394933673,1764162632403,-293.6868797,0.00010228,2]
[394933676,1764162632413,-1128.0,0.00010228,2]
[394933678,1764162632422,-289.4643269,0.00010228,2]
[394933680,1764162632431,-151.0,0.00010228,2]
[394933682,1764162632440,-162.35404905,0.00010228,2]
[394933684,1764162632449,-151.0,0.00010228,2]
[394933686,1764162632459,-611.73247519,0.00010228,2]
[394933687,1764162632467,-500.0,0.00010246,2]
[394933690,1764162632476,-607.30719544,0.00010292,2]
[394933692,1764162632486,-1645.0,0.00010365,2]
[394933694,1764162632496,-1128.0,0.00010365,2]
[394933696,1764162632505,-204.70141849,0.00010365,2]
[394933698,1764162632514,-271.51391046,0.00010365,2]
[394933700,1764162632523,-963.26355325,0.00010383,2]
[394933702,1764162632532,-312.36812199,0.00010383,2]
[394933704,1764162632542,-630.0,0.00010464,2]
[394933706,1764162632551,-2152.0,0.00010464,2]
[394933708,1764162632559,-414.0,0.00010464,2]
[394933710,1764162632569,-500.0,0.00010481,2]
[394933712,1764162632578,-500.0,0.00010481,2]
[394933714,1764162632587,-1645.0,0.00010502,2]
[394933716,1764162632596,-1128.0,0.00010502,2]
[394933718,1764162632605,-500.0,0.0001052,2]
[394933720,1764162632615,-1645.0,0.00010639,2]
[394933722,1764162632624,-1128.0,0.00010639,2]
[394933724,1764162632634,-1074.07,0.00010773,2]
[394933726,1764162632644,-1645.0,0.00010776,2]
[394933728,1764162632653,-1128.0,0.00010776,2]
[394933730,1764162632662,-500.0,0.00010794,2]
[394933732,1764162632671,-212.56341745,0.0001086,2]
[394933734,1764162632680,-151.0,0.0001086,2]
[394933736,1764162632690,-151.0,0.0001086,2]
[394933738,1764162632699,-502.92201498,0.00010873,2]
[394933740,1764162632710,-500.0,0.00010873,2]
[394933742,1764162632721,-501.18047625,0.00010873,2]
[394933744,1764162632731,-500.0,0.00010873,2]
[394933746,1764162632744,-500.93393088,0.00010873,2]
[394933748,1764162632754,-311.12087516,0.00010873,2]
[394933750,1764162632764,-500.0,0.00010873,2]
[394933752,1764162632773,-153.44,0.00010883,2]
[394933754,1764162632783,-153.44,0.00010894,2]
[394933756,1764162632794,-153.42,0.00010905,2]
[394933758,1764162632803,-1645.0,0.00010913,2]
[394933760,1764162632813,-1128.0,0.00010913,2]
[394933762,1764162632822,-420.0,0.00010924,2]
[394933764,1764162632831,-286.0,0.00010925,2]
[394933766,1764162632840,-276.6195791,0.00010959,2]
[394933768,1764162632850,-302.596675,0.00010959,2]
[394933770,1764162632859,-302.596675,0.00010959,2]
[394933772,1764162632868,-302.596675,0.00010959,2]
[394933774,1764162632879,-302.596675,0.00010959,2]
[394933776,1764162632889,-500.0,0.00010959,2]
[394933778,1764162632898,-500.0,0.00010959,2]
[394933780,1764162632907,-646.29506727,0.00010959,2]
[394933782,1764162632916,-500.0,0.00010959,2]
[394933784,1764162632925,-151.0,0.00010997,2]
[394933786,1764162632934,-151.0,0.00010997,2]
[394933788,1764162632943,-1645.0,0.0001105,2]
[394933790,1764162632953,-1128.0,0.0001105,2]
[394933792,1764162632962,-500.0,0.00011068,2]
[394933794,1764162632971,-600.0,0.00011077,2]
[394933796,1764162632980,-3576.91988542,0.00011109,2]
[394933798,1764162632990,-151.0,0.00011134,2]
[394933800,1764162633000,-244.90638545,0.00011134,2]
[394933802,1764162633009,-1645.0,0.00011187,2]
[394933804,1764162633018,-1128.0,0.00011187,2]
[394933806,1764162633028,-15254.362252,0.00011256,2]
[394933808,1764162633037,-3576.91988542,0.00011264,2]
[394933810,1764162633046,-274.6390406,0.00011271,2]
[394933812,1764162633056,-2248.04238718,0.00011293,2]
[394933814,1764162633065,-4294.04477503,0.0001132,2]
[394933816,1764162633074,-1645.0,0.00011324,2]
[394933818,1764162633084,-1128.0,0.00011324,2]
[394933820,1764162633093,-177.0,0.00011325,2]
[394933822,1764162633103,-548.51846409,0.00011342,2]
[394933824,1764162633113,-575.32904226,0.0001139,2]
[394933826,1764162633122,-3576.91988542,0.00011419,2]
[394933828,1764162633131,-1000.0,0.00011421,2]
[394933830,1764162633141,-1000.0,0.00011421,2]
[394933832,1764162633150,-1140.92120838,0.00011421,2]
[394933834,1764162633159,-302.596675,0.00011426,2]
[394933836,1764162633169,-302.596675,0.00011426,2]
[394933838,1764162633178,-302.596675,0.00011426,2]
[394933840,1764162633187,-302.596675,0.00011426,2]
[394933842,1764162633197,-1645.0,0.00011461,2]
[394933844,1764162633207,-1128.0,0.00011461,2]
[394933846,1764162633216,-302.596675,0.00011505,2]
[394933848,1764162633225,-302.596675,0.00011505,2]
[394933850,1764162633235,-302.596675,0.00011505,2]
[394933852,1764162633244,-302.596675,0.00011505,2]
[394933854,1764162633253,-2052.8411783,0.00011543,2]
[394933856,1764162633263,-79299.7682015,0.00011543,2]
[394933858,1764162633272,-4838.1178258,0.00011543,2]
[394933860,1764162633282,-302.596675,0.00011543,2]
[394933862,1764162633292,-302.596675,0.00011543,2]
[394933864,1764162633301,-302.596675,0.00011543,2]
[394933866,1764162633311,-302.596675,0.00011543,2]
[394933868,1764162633320,-500.0,0.0001156,2]
[394933870,1764162633329,-3576.91988542,0.00011574,2]
[394933872,1764162633339,-1645.0,0.00011598,2]
[394933874,1764162633348,-1128.0,0.00011598,2]
[394933876,1764162633358,-1000.0,0.00011668,2]
[394933878,1764162633367,-1000.0,0.00011668,2]
[394933880,1764162633376,-1000.0,0.00011668,2]
[394933882,1764162633386,-1000.0,0.00011668,2]
[394933884,1764162633395,-1000.0,0.00011668,2]
[394933886,1764162633404,-156.43671368,0.00011668,2]
[394933888,1764162633414,-1014.70612929,0.00011668,2]
[394933890,1764162633423,-151.0,0.00011668,2]
[394933892,1764162633432,-151.0,0.00011668,2]
[394933894,1764162633442,-151.0,0.00011668,2]
[394933896,1764162633452,-151.0,0.00011668,2]
[394933898,1764162633461,-151.0,0.00011668,2]
[394933900,1764162633472,-151.0,0.00011668,2]
[394933902,1764162633481,-151.0,0.00011668,2]
[394933904,1764162633491,-3576.91988542,0.00011729,2]
[394933906,1764162633502,-1645.0,0.00011735,2]
[394933908,1764162633512,-1128.0,0.00011735,2]
[394933910,1764162633523,-302.596675,0.00011801,2]
[394933911,1764162633532,-302.596675,0.00011801,2]
[394933913,1764162633542,-302.596675,0.00011801,2]
[394933914,1764162633552,-302.596684,0.00011801,2]
[394933915,1764162633562,-1645.0,0.00011872,2]
[394933916,1764162633571,-1128.0,0.00011872,2]
[394933917,1764162633581,-3576.91988542,0.00011884,2]
[394933918,1764162633591,-388.22925737,0.00011968,2]
[394933919,1764162633600,-1500.0,0.00011968,2]
[394933920,1764162633610,-1645.0,0.00012009,2]
[394933921,1764162633621,-1128.0,0.00012009,2]
[394933922,1764162633630,-587.0,0.00012017,2]
[394933923,1764162633640,-3576.91988542,0.00012039,2]
[394933924,1764162633650,-1645.0,0.00012146,2]
[394933925,1764162633661,-1128.0,0.00012146,2]
[394933926,1764162633671,-720.0,0.00012185,2]
[394933927,1764162633681,-3576.91988542,0.00012194,2]
[394933928,1764162633690,-1645.0,0.00012283,2]
[394933929,1764162633700,-1128.0,0.00012283,2]
[394933930,1764162633712,-3576.91988542,0.00012349,2]
[394933931,1764162633723,-1645.0,0.0001242,2]
[394933932,1764162633733,-1128.0,0.0001242,2]
[394933933,1764162633742,-3580.49680531,0.00012503,2]
[394933934,1764162633753,-464.29390071,0.00012516,2]
[394933935,1764162633763,-1645.0,0.00012557,2]
[394933936,1764162633773,-1128.0,0.00012557,2]
[394933937,1764162633783,-250.0,0.00012564,2]
[394933938,1764162633794,-250.0,0.00012564,2]
[394933939,1764162633806,-250.0,0.00012564,2]
[394933940,1764162633816,-250.0,0.00012564,2]
[394933941,1764162633825,-250.0,0.00012564,2]
[394933942,1764162633836,-250.0,0.00012564,2]
[394933943,1764162633850,-250.0,0.00012564,2]
[394933944,1764162633859,-250.0,0.00012564,2]
[394933945,1764162633869,-250.0,0.00012564,2]
[394933946,1764162633878,-250.0,0.00012564,2]
[394933947,1764162633888,-250.0,0.00012564,2]
[394933948,1764162633897,-250.0,0.00012564,2]
[394933949,1764162633907,-250.0,0.00012564,2]
[394933950,1764162633916,-250.0,0.00012564,2]
[394933951,1764162633926,-250.0,0.00012564,2]
[394933952,1764162633935,-250.0,0.00012564,2]
[394933953,1764162633945,-280.26861375,0.00012564,2]
[394933954,1764162633955,-250.0,0.00012564,2]
[394933955,1764162633966,-500.0,0.00012656,2]
[394933956,1764162633976,-1645.0,0.00012694,2]
[394933957,1764162633986,-1128.0,0.00012694,2]
[394933958,1764162633995,-1645.0,0.00012831,2]
[394933959,1764162634006,-1128.0,0.00012831,2]
[394933960,1764162634017,-1645.0,0.00012968,2]
[394933961,1764162634028,-1128.0,0.00012968,2]
[394933962,1764162634038,-17694.1699785,0.00013005,2]
[394933963,1764162634048,-15254.36225197,0.00013075,2]
[394933964,1764162634059,-1667.84524238,0.00013105,2]
[394933965,1764162634069,-1144.31722376,0.00013105,2]
[394933966,1764162634078,-353.4974844,0.00013145,2]
[394933967,1764162634090,-823.0,0.00013218,2]
[394933968,1764162634099,-204.0,0.00013325,2]
[394933969,1764162634108,-3948.102981,0.00013331,2]
[394933970,1764162634118,-864.0,0.00013403,2]
[394933971,1764162634127,-1079.5300052,0.00013596,2]
[394933972,1764162634136,-1010.79,0.00013698,2]
[394933973,1764162634146,-1010.79,0.00013698,2]
[394933974,1764162634157,-1010.79,0.00013698,2]
[394933975,1764162634167,-1010.79,0.00013698,2]
[394933976,1764162634176,-1010.79,0.00013698,2]
[394933977,1764162634185,-1010.79,0.00013698,2]
[394933978,1764162634194,-1010.79,0.00013698,2]
[394933979,1764162634202,-1010.79,0.00013698,2]
[394933980,1764162634211,-1010.79,0.00013698,2]
[394933981,1764162634220,-1010.79,0.00013698,2]
[394933982,1764162634229,-1010.79,0.00013698,2]
[394933983,1764162634239,-1010.79,0.00013698,2]
[394933984,1764162634247,-1010.79,0.00013698,2]
[394933985,1764162634256,-1010.79,0.00013698,2]
[394933986,1764162634265,-1010.79,0.00013698,2]
[394933987,1764162634274,-1010.79,0.00013698,2]
[394933988,1764162634283,-1010.79,0.00013698,2]
[394933989,1764162634294,-1010.79,0.00013698,2]
[394933990,1764162634304,-1010.79,0.00013698,2]
[394933991,1764162634314,-1010.79,0.00013698,2]
[394933992,1764162634324,-1010.79,0.00013698,2]
[394933993,1764162634333,-1010.79,0.00013698,2]
[394933994,1764162634343,-1010.79,0.00013698,2]
[394933995,1764162634352,-1010.8229322,0.00013698,2]
[394933996,1764162634361,-1000.0,0.00013699,2]
[394933997,1764162634371,-1500.0,0.00013699,2]
[394933998,1764162634379,-500.0,0.00013699,2]
[394933999,1764162634388,-500.0,0.00013699,2]